Cogmind - Beta 16.1 @@@ ROGUE MODE // 2026.02.12 @ 09:18:09 Player: CometVoid Result: Self-destructed Performance ------------- Evolutions (1) 500 Regions Visited (2) 400 Robots Destroyed (29) 145 Value Destroyed (432) 432 Prototype IDs (0) 0 Alien Tech Used (0) 0 Bonus (0) 0 TOTAL SCORE: 1477 Bonus ------- None Cogmind --------- Core Integrity 348/400 Matter 7/300 Energy 250/250 System Corruption 0% Temperature Cool (6) Movement Core (1500) Ox29 Location -9/Materials Parts ------- > --- POWER (1) -------- Ion Engine > --- PROPULSION (3) --- (None) > --- UTILITY (3) ------ Huge Storage Unit Signal Interpreter > --- WEAPON (2) ------- Grenade Launcher > --- INVENTORY (25) --- Ion Engine Light Ion Engine Light Ion Engine Light Treads Light Treads Aluminum Leg Aluminum Leg Wheel Wheel Wheel Flight Unit Large Storage Unit Large Storage Unit Large Storage Unit Large Matter Pod (0) Weight Redist. System Sensor Array Signal Interpreter Seismic Detector Medium Laser Shotgun Shotgun Grenade Launcher Mini Grenade Launcher Mini Grenade Launcher Peak State ------------ > --- POWER ------------ Ion Engine > --- PROPULSION ------- Wheel Wheel Wheel > --- UTILITY ---------- Huge Storage Unit Sensor Array Signal Interpreter > --- WEAPON ----------- Grenade Launcher Mining Laser > --- INVENTORY -------- Ion Engine Light Ion Engine Light Ion Engine Light Treads Light Treads Aluminum Leg Aluminum Leg Wheel Wheel Flight Unit Large Storage Unit Large Storage Unit Large Storage Unit Large Matter Pod Weight Redist. System Signal Interpreter Seismic Detector Medium Laser Shotgun Shotgun Grenade Launcher Mini Grenade Launcher Mini Grenade Launcher [Rating: 11] Favorites ----------- Power Ion Engine Engine Ion Engine Propulsion Light Treads Treads Light Treads Wheel Wheel Utility Huge Storage Unit Device Seismic Detector Storage Huge Storage Unit Processor Signal Interpreter Weapon Grenade Launcher Ballistic Gun Assault Rifle Launcher Grenade Launcher Special Weapon Mining Laser Build | -11 -10 -9 ------- Run | Yrd Mat Mat Slots Evolved 2 | . . 2 Power . | . . . Propulsion 1 | . . 1 Utility 1 | . . 1 Weapon . | . . . Parts Attached 18 | 7 7 4 Power 1 | 1 . . Engine 1 | 1 . . Core . | . . . Reactor . | . . . Propulsion 6 | 2 2 2 Treads 2 | 2 . . Leg . | . . . Wheel 4 | . 2 2 Hover . | . . . Flight . | . . . Utility 6 | 2 3 1 Device 2 | 1 . 1 Storage 3 | 1 2 . Processor 1 | . 1 . Hackware . | . . . Protection . | . . . Artifact . | . . . Weapon 5 | 2 2 1 Energy Gun . | . . . Energy Cannon . | . . . Ballistic Gun 2 | 2 . . Ballistic Cannon . | . . . Launcher 2 | . 1 1 Special Weapon 1 | . 1 . Impact Weapon . | . . . Slashing Weapon . | . . . Piercing Weapon . | . . . Special Melee Weapon . | . . . Unidentified Prototypes . | . . . Parts Lost . | . . . Power . | . . . Propulsion . | . . . Utility . | . . . Weapon . | . . . Highest Loss Streak . | . . . To Critical Strikes . | . . . Average Backups 18 | 4 19 24 Power 2 | . 2 3 Propulsion 6 | 2 6 7 Utility 4 | . 4 7 Weapon 5 | . 5 6 Tool/Special . | . . . Unused Backups 29 | . 11 18 Power 4 | . 1 3 Propulsion 8 | . 4 4 Utility 8 | . 2 6 Weapon 8 | . 3 5 Tool/Special 1 | . 1 . Average Slot Usage (%) 96 | . 99 61 Engine 13 | . 13 11 Treads 16 | . 17 . Wheel 10 | . 10 9 Device 7 | . 8 3 Storage 13 | . 14 11 Processor 6 | . 5 11 Launcher 13 | . 13 11 Special Weapon 12 | . 13 3 Peak Build Rating 11 | 7 10 11 Average Rating 8 | 5 9 7 On Entrance 5 | . 7 10 Avg Prop Armor Cover (%) 11 | . 11 . Naked Turns . | . . . Heaviest Build 90 | 15 90 90 Greatest Support 40 | 40 40 30 Greatest Overweight (x) 29 | . 8 29 Average Overweight (x) 5 | . 5 7 Largest Inventory Capacity 25 | 8 25 25 Average Capacity 20 | 6 21 25 Most Carried 25 | 6 25 25 Average Carried 18 | 4 19 24 Final Capacity 25 | 8 25 25 Final Carried 25 | 6 25 25 Class Distribution -------------------- 100% | Mutant Dominant Class ---------------- Mutant | -10/Materials Mutant | -9/Materials Resources | -11 -10 -9 ----------- Run | Yrd Mat Mat Matter Collected 396 | 134 262 . Remotely . | . . . Salvage Created 426 | 11 415 . Parts 49 | 2 47 . Haulers Intercepted 2 | . 2 . Recyclers Shooed 3 | 1 2 . Parts Field Recycled . | . . . Retrieved Matter . | . . . Parts Self-Destructed . | . . . Prevented . | . . . Parts Restored . | . . . Kills | -11 -10 -9 ------- Run | Yrd Mat Mat Combat Hostiles Destroyed 18 | . 18 . AOE 18 | . 18 . Classes Destroyed 8 | 1 7 . Worker 2 | . 2 . Builder 1 | . 1 . Tunneler 1 | 1 . . Hauler 2 | . 2 . Recycler 2 | . 2 . Watcher 3 | . 3 . Swarmer 12 | . 12 . Grunt 6 | . 6 . Best Kill Streak 11 | 1 11 . Combat Bots Only 7 | . 7 . Max Kills in Single Turn 4 | 1 4 . Gunslinging . | . . . Exploded 4 | . 4 . Melee . | . . . Uniques/NPCs Destroyed . | . . . Combat | -11 -10 -9 -------- Run | Yrd Mat Mat Hostile Shots Fired 40 | . 25 15 Missed 11 | . 10 1 Hits 29 | . 15 14 Projectile 29 | . 15 14 Critical Strikes 1 | . 1 . Damage Taken 304 | . 181 123 Core 96 | . 44 52 Absorbed by Shields . | . . . Core Remaining (%) 91 | 100 82 . Volleys Fired 48 | 6 42 . Largest 2 | 2 1 . Hottest 100 | 40 100 . Shots Fired 55 | 12 43 . Gun 13 | 12 1 . Cannon . | . . . Launcher 21 | . 21 . Special 21 | . 21 . Kinetic 13 | 12 1 . Thermal 21 | . 21 . Explosive 21 | . 21 . Electromagnetic . | . . . Robot Hit Streak 9 | 2 9 . Robot Miss Streak 3 | 3 2 . Penetration Max . | . . . Secondary Targets . | . . . Shots Hit Robots 22 | 6 16 . Core Hits 39 | 1 38 . Critical Kills . | . . . Critical Parts Destroyed . | . . . Critical Strikes . | . . . Melee Attacks . | . . . Impact . | . . . Slashing . | . . . Piercing . | . . . Sneak Attacks . | . . . Combat Hostiles . | . . . Follow-up Attacks . | . . . Damage Inflicted 1452 | 93 1359 . Guns 103 | 93 10 . Cannons . | . . . Explosions 1246 | . 1246 . Melee . | . . . Ramming 7 | . 7 . Kinetic 103 | 93 10 . Thermal 96 | . 96 . Explosive 1246 | . 1246 . Electromagnetic . | . . . Impact . | . . . Slashing . | . . . Piercing . | . . . Highest Corruption 1 | . 1 . Average Corruption 1 | . 1 . Corruption Purged . | . . . Corruption Blocked . | . . . Effects 4 | . 4 . Matter Fused 2 | . 2 . Heat Flow Errors 1 | . 1 . Misfires 1 | . 1 . Overload Shots . | . . . Overflow Damage 56 | . 56 . Projectiles 17 | . 17 . Explosions 39 | . 39 . Melee . | . . . Knockbacks . | . . . Impact . | . . . Kinetic . | . . . Secondary . | . . . Self-Inflicted Damage 55 | . 55 . Shots 2 | . 2 . Rammed 1 | . 1 . Targets Rammed 2 | . 2 . Kicked . | . . . Crushed 1 | . 1 . Highest Temperature 251 | . 251 . Average Temperature 28 | . 28 . Received Heat Transfer 42 | . 18 24 Siege Activations . | . . . Martial Activations . | . . . Shielding Activations . | . . . Robots Disrupted . | . . . Combat Hostiles . | . . . Robots Corrupted . | . . . Combat Hostiles . | . . . Parts Fried . | . . . Impact Corruptions . | . . . Robots Melted . | . . . Combat Hostiles . | . . . Parts Melted . | . . . Heat Transferred 200 | . 200 . Parts Sabotaged . | . . . Parts Stolen . | . . . Parts Stripped . | . . . Power Chain Reactions . | . . . Alert | -11 -10 -9 ------- Run | Yrd Mat Mat Maximum Alert Level 1 | . 1 . Low Security (%) 82 | 100 79 100 Level 1 17 | . 20 . Level 2 . | . . . Level 3 . | . . . Level 4 . | . . . Level 5 . | . . . High Security . | . . . Max Security . | . . . Peak Influence 234 | 5 234 81 Initial 81 | . . 81 Average 99 | . 111 55 Influence Increases 692 | 5 687 . Destroy 0b10 Robot/C 360 | . 360 . Destroy 0b10 Robot/NC 55 | 5 50 . Destroy Leader 70 | . 70 . Successful Hack 7 | . 7 . Disable Machine 45 | . 45 . Destroy Structure 155 | . 155 . Influence Decreases 671 | 5 493 173 Entered New Map 113 | . . 113 Time Decay 558 | 5 493 60 Squads Dispatched 4 | . 3 1 Investigation 3 | . 3 . Extermination . | . . . Reinforcement 1 | . . 1 Assault . | . . . Garrison . | . . . Intercept . | . . . Searches Triggered . | . . . Construction Impeded . | . . . Haulers Reinforced . | . . . Active Scanning Responses . | . . . Cargo Convoy Interrupts . | . . . Stealth | -11 -10 -9 --------- Run | Yrd Mat Mat Distress Signals 2 | . 1 1 Communications Jammed . | . . . Distress Signals . | . . . Times Spotted 24 | . 18 6 Peak Tracking Total 7 | . 4 7 Tactical Retreats . | . . . Traps | -11 -10 -9 ------- Run | Yrd Mat Mat Traps Triggered 8 | . 3 5 Indirectly . | . . . Trap Hack Attempts . | . . . Triggered . | . . . Disarmed 4 | . 4 . Reprogrammed . | . . . Reused . | . . . Traps Extracted . | . . . Installed . | . . . Triggered . | . . . Machines | -11 -10 -9 ---------- Run | Yrd Mat Mat Machines Disabled 5 | . 5 . Max in Single Turn 1 | . 1 . Machines Repaired . | . . . Machines Dismantled . | . . . Machines Sabotaged . | . . . Overloaded Fab Kills . | . . . Hacking | -11 -10 -9 --------- Run | Yrd Mat Mat Machines Accessed 10 | . 10 . Terminals 8 | . 8 . Fabricators . | . . . Repair Stations . | . . . Recycling Units 2 | . 2 . Scanalyzers . | . . . Garrison Access . | . . . Total Hacks 23 | . 23 . Successful 9 | . 9 . Failed 14 | . 14 . Catastrophic 7 | . 7 . Database Lockouts . | . . . Manual 16 | . 16 . Terminals 19 | . 19 . Fabricators . | . . . Repair Stations . | . . . Recycling Units 4 | . 4 . Scanalyzers . | . . . Garrison Access . | . . . Terminal Hacks 5 | . 5 . Part Schematic 1 | . 1 . Terminal Index 1 | . 1 . Alert Level 1 | . 1 . Disarm Traps 1 | . 1 . Hauler Manifests 1 | . 1 . Fabricator Hacks . | . . . Repair Station Hacks . | . . . Recycling Unit Hacks 4 | . 4 . Report Inventory 2 | . 2 . Retrieve Components 2 | . 2 . Scanalyzer . | . . . Garrison Access Hacks . | . . . Unauthorized Hacks . | . . . Terminals . | . . . Fabricators . | . . . Repair Stations . | . . . Recycling Units . | . . . Scanalyzers . | . . . Garrison Access . | . . . Data Cores Recovered . | . . . Used . | . . . Hacking Detections 10 | . 10 . Full Trace Events 2 | . 2 . Feedback Events . | . . . Feedback Blocked . | . . . Robot Schematics Acquired . | . . . Robots Built . | . . . Authchips . | . . . Time . | . . . Total Robot Build Rating . | . . . Part Schematics Acquired 1 | . 1 . Parts Built . | . . . Authchips . | . . . Time . | . . . Total Part Build Rating . | . . . Part Studies Acquired . | . . . Parts Repaired . | . . . Time . | . . . Parts Recycled . | . . . Recycled Matter . | . . . Retrieved Matter . | . . . Retrieved Components 16 | . 16 . Parts Scanalyzed . | . . . Part Schematics Acquired . | . . . Parts Damaged . | . . . Bothacking | -11 -10 -9 ------------ Run | Yrd Mat Mat Used RIF Installer . | . . . Robots Hacked . | . . . Non-combat . | . . . Combat . | . . . Robot Hacks Applied . | . . . Relay Couplers Released . | . . . Fabnet Peak Effective % . | . . . Robots Rewired . | . . . Allies Hacked . | . . . Hacks Repelled . | . . . Allies | -11 -10 -9 -------- Run | Yrd Mat Mat Total Allies . | . . . Largest Group . | . . . Highest-Rated Group . | . . . Highest-Rated Ally . | . . . Total Orders . | . . . Ally Attacks . | . . . Total Damage . | . . . Kills . | . . . Allies Corrupted . | . . . Allies Melted . | . . . Intel | -11 -10 -9 ------- Run | Yrd Mat Mat Active Infowar (turns) 950 | 42 870 38 Sensors 38 | . . 38 Seismic 912 | 42 870 . Robot Analysis Total . | . . . Derelict Logs Recovered . | . . . Drone Launches . | . . . Drone Recoveries . | . . . Exploration | -11 -10 -9 ------------- Run | Yrd Mat Mat Turns Passed 1732 | 123 1489 120 Spaces Moved 774 | 61 684 29 Core 12 | 7 . 5 Treads 247 | 54 193 . Legs . | . . . Wheels 515 | . 491 24 Hover . | . . . Flight . | . . . Fastest Speed 50 | 50 160 110 Average Speed 191 | 147 188 363 Slowest Speed 1500 | 160 200 1500 Overloaded Moves . | . . . Propulsion Burnouts . | . . . Robots Hopped . | . . . Potential Cave-ins 3 | . 3 . Cave-ins Triggered . | . . . Exploration Rate (%) 32 | 4 89 4 Regions Visited 2 Branch Regions . Pre-discovered Areas . | . . . Known Exits Taken 1 | . 1 . Unknown Exits Taken 1 | 1 . . Scrap Searched . | . . . Spaces Dug 14 | . 14 . Terrain Destroyed 161 | . 161 . Melee . | . . . Projectile 14 | . 14 . AOE 147 | . 147 . Terrain Rammed . | . . . Walls Destroyed . | . . . Machines Disabled . | . . . Actions | -11 -10 -9 --------- Run | Yrd Mat Mat Total 941 | 79 816 46 Wait 18 | . 18 . Move 772 | 60 683 29 Hop . | . . . Pick Up 54 | 6 40 8 Fast Attach 9 | 7 2 . Attach 7 | . 1 6 Detach . | . . . Swap 7 | . 6 1 Drop 24 | . 22 2 Fire 48 | 6 42 . Melee . | . . . Ram . | . . . Kick . | . . . Crush 2 | . 2 . Escape Stasis . | . . . Rewire . | . . . Trap . | . . . Miscellaneous . | . . . Route ------- -11/Scrapyard -10/Materials (discovered 5 exits: *Mat x2 / *Min x2 / [*Sub]) -9/Materials (discovered 1 exit: *Sto) History --------- Turn | Location | Event 55 | -11/Scrapyard | Discovered new exit (range 15) 124 | -11/Scrapyard | Entered Materials 147 | -10/Materials | Discovered new exit (range 13) 264 | -10/Materials | Destroyed 7 combat bots 309 | -10/Materials | Build established: Mutant 688 | -10/Materials | Discovered new exit (range 9) 792 | -10/Materials | Discovered new exit (range 8) 1016 | -10/Materials | Identified exit to Mines 1103 | -10/Materials | Discovered new exit (range 11) 1135 | -10/Materials | Identified exit to Materials 1207 | -10/Materials | Discovered exit to Mines (range 5) 1613 | -10/Materials | Entered another Materials area 1613 | -9/Materials | Evolved 2 slots: Propulsion x1, Utility x1 1617 | -9/Materials | Discovered new exit (range 14) 1631 | -9/Materials | Identified exit to Storage 1733 | -9/Materials | Self-destructed Last Messages --------------- 01652_ Triggered Blade Trap. 01652_ Massive razor-sharp blades shoot up from within the floor. 01652_ Wheel severed. 01652_ Mining Laser severed. 01654_ Triggered Blade Trap. 01654_ Massive razor-sharp blades shoot up from within the floor. 01654_ Sensor Array severed. 01654_ Wheel severed. 01656_ Acquired Sensor Array. 01665_ K-01 Serf collects debris. 01672_ Acquired Wheel. 01688_ Dropped Wheel. 01688_ Acquired Wheel. 01690_ U-05 Engineer lays Concrete. 01715_ R-06 Scavenger collects Wheel. 01717_ O-16 Technician: "IFF HANDSHAKE FAILED. SECURING TERMINAL." 01719_ R-06 Scavenger collects Mining Laser. 01720_ W-16 Scout sends out distress signal. 01722_ ALERT: Hostiles spotted, dispatching reinforcements to Terminal M005. 01722_ R-06 Scavenger collects Wheel. Map ----- +----------------------------------------------------+ | | | | | | | | | | | | | | | | | | | | | ?????????????????????????????????????????????????? | | ?????????????????????????????????????????????????? | | ?????????????????????????????????????????????????? | | ???????????????????#######???????????????????????? | | ?????############### #???????????????????????? | | ?????# #???????????????????????? | | ?????# > #???????????????????????? | | ?????# #???????????????????????? | | ?????#### ########## #???????????????????????? | | ???????# #????????## ##???????????????????????? | | ???????####?????????#g^ #????????????????????????? | | ????????????????????# #????????????????????????? | | ????????????????????# g############+###?????????? | | ????????????????????# r ????????? | | ????????????????????# l ????????? | | ????????????????????# @ s g k????????? | | ????????????????????#######+####### #??????????? | | ?????????????????????????????????????????????????? | | ?????????????????????????????????????????????????? | | ?????????????????????????????????????????????????? | | ?????????????????????????????????????????????????? | | ?????????????????????????????????????????????????? | | ?????????????????????????????????????????????????? | | ?????????????????????????????????????????????????? | | ?????????????????????????????????????????????????? | | ?????????????????????????????????????????????????? | | ?????????????????????????????????????????????????? | | ?????????????????????????????????????????????????? | | ?????????????????????????????????????????????????? | | ?????????????????????????????????????????????????? | | ?????????????????????????????????????????????????? | | ?????????????????????????????????????????????????? | | ?????????????????????????????????????????????????? | | ?????????????????????????????????????????????????? | | ?????????????????????????????????????????????????? | | ?????????????????????????????????????????????????? | | ?????????????????????????????????????????????????? | | ?????????????????????????????????????????????????? | | ?????????????????????????????????????????????????? | | ?????????????????????????????????????????????????? | +----------------------------------------------------+ Best States ------------- Heat Dissipation 28 Energy Generation 10 Energy Capacity 250 Matter Stores 195 Matter Capacity 300 Sight Range 16 Robot Scan Range 14 Terrain Scan Density 10 Evasion (%) 40 Recoil Reduction 2 Item Schematics ----------------- Grenade Launcher | -10/Materials | Hacked Robot Schematics ------------------ None Fabricated ------------ Nothing Repaired ---------- Nothing Studied --------- None Alien Tech Used ----------------- None Achievements -------------- None Challenges ------------ None Game ------ Seed StasisHypervelocityTrident Manual? 0 Play Time 00:32:50 Cumulative 16.8 hours Start 2026.02.12 @ 08:46:54 End 2026.02.12 @ 09:18:09 Sessions 1 Manual Loads 0 Difficulty Rogue Special Mode None Game No. 17 Rogue 13 Adventurer 4 Explorer 0 Win Type - Total 0 Types 0/0/0/0/0/0/0/0/0/0 Lore% 7 Gallery% 14 Achievement% 15 Wizard Run 0 Options --------- Layout 0 ASCII 0 Keyboard 1 Movement Arrows Keybinds 0 Fullscreen 2 Font 32/CogWide Map View 78x50 Zoom Use 0% Tactical HUD 1 Map Filters NONE Filters NONE Steam 1 RUN: eedfde8e-51b5-4288-94e2-a9e989826e05